[Event "*** Biggest EVER Titled Tuesday"]
[Site "Chess.com"]
[Date "2018.04.17"]
[Round "8"]
[White "AbdAlAgathos"]
[Black "calemcc"]
[Result "1-0"]
[WhiteElo "2353"]
[BlackElo "2245"]
[TimeControl "180+2"]
[EndTime "14:53:39 PDT"]
[Termination "AbdAlAgathos won by resignation"]

1. e4 {[%clk 0:03:01.9]} 1... e6 {[%clk 0:03:01]} 2. d4 {[%clk 0:03:02.5]} 2...
d5 {[%clk 0:03:02.9]} 3. Nd2 {[%clk 0:03:04]} 3... Nc6 {[%clk 0:03:02.8]} 4.
Ngf3 {[%clk 0:03:03.8]} 4... Nf6 {[%clk 0:03:03.3]} 5. e5 {[%clk 0:03:05.3]}
5... Nd7 {[%clk 0:03:04.6]} 6. Bd3 {[%clk 0:03:06.5]} 6... Nb4 {[%clk
0:03:04.9]} 7. Be2 {[%clk 0:03:07.6]} 7... c5 {[%clk 0:03:06.3]} 8. c3 {[%clk
0:03:08.7]} 8... Nc6 {[%clk 0:03:07.9]} 9. O-O {[%clk 0:03:10]} 9... f6 {[%clk
0:03:08.4]} 10. exf6 {[%clk 0:03:07.4]} 10... Qxf6 {[%clk 0:03:10.3]} 11. Re1
{[%clk 0:02:29.3]} 11... Bd6 {[%clk 0:03:08.1]} 12. dxc5 {[%clk 0:02:27.5]}
12... Bxc5 {[%clk 0:03:07.2]} 13. Nb3 {[%clk 0:02:24.8]} 13... Bd6 {[%clk
0:03:04.9]} 14. Bg5 {[%clk 0:02:21.1]} 14... Qf7 {[%clk 0:03:05.3]} 15. Bh4
{[%clk 0:02:05.1]} 15... O-O {[%clk 0:02:59.7]} 16. Bd3 {[%clk 0:02:03.9]} 16...
h6 {[%clk 0:02:47.8]} 17. Bc2 {[%clk 0:01:55]} 17... Nde5 {[%clk 0:02:36.8]} 18.
Nxe5 {[%clk 0:01:51.5]} 18... Nxe5 {[%clk 0:02:35.2]} 19. Nd4 {[%clk 0:01:47]}
19... Ng6 {[%clk 0:02:28.3]} 20. Bg3 {[%clk 0:01:43.3]} 20... Bxg3 {[%clk
0:02:26.9]} 21. fxg3 {[%clk 0:01:37.4]} 21... Bd7 {[%clk 0:02:02.4]} 22. Qh5
{[%clk 0:01:28.8]} 22... Qf2+ {[%clk 0:01:47.5]} 23. Kh1 {[%clk 0:01:29.2]}
23... Ne7 {[%clk 0:01:48.9]} 24. Bd3 {[%clk 0:01:08.3]} 24... Qf7 {[%clk
0:00:40.4]} 25. Qe2 {[%clk 0:00:58.3]} 25... Nc6 {[%clk 0:00:36.2]} 26. Nxc6
{[%clk 0:00:46]} 26... bxc6 {[%clk 0:00:35.3]} 27. Rf1 {[%clk 0:00:47]} 27...
Qe7 {[%clk 0:00:35.5]} 28. Qe5 {[%clk 0:00:42.3]} 28... Rxf1+ {[%clk 0:00:27.1]}
29. Rxf1 {[%clk 0:00:44.2]} 29... Rf8 {[%clk 0:00:26.8]} 30. Rxf8+ {[%clk
0:00:45]} 30... Qxf8 {[%clk 0:00:28.2]} 31. h3 {[%clk 0:00:45.5]} 31... Qf6
{[%clk 0:00:28]} 32. Qb8+ {[%clk 0:00:44.7]} 32... Kf7 {[%clk 0:00:27]} 33. Qxa7
{[%clk 0:00:42.3]} 33... Ke7 {[%clk 0:00:28.2]} 34. Qc5+ {[%clk 0:00:42.1]}
34... Ke8 {[%clk 0:00:28.6]} 35. Qd4 {[%clk 0:00:38.7]} 35... e5 {[%clk
0:00:28.2]} 36. Qe3 {[%clk 0:00:34.4]} 36... e4 {[%clk 0:00:28.2]} 37. Be2
{[%clk 0:00:30.6]} 37... Kf7 {[%clk 0:00:21.4]} 38. Qf4 {[%clk 0:00:31.1]} 38...
Bf5 {[%clk 0:00:19.3]} 39. g4 {[%clk 0:00:28.2]} 39... Bd7 {[%clk 0:00:20]} 40.
g3 {[%clk 0:00:25.1]} 40... g5 {[%clk 0:00:20.1]} 41. Qxf6+ {[%clk 0:00:22.7]}
41... Kxf6 {[%clk 0:00:22]} 42. Kg2 {[%clk 0:00:24]} 42... c5 {[%clk 0:00:22.9]}
43. Bd1 {[%clk 0:00:17.7]} 43... d4 {[%clk 0:00:23.9]} 44. cxd4 {[%clk 0:00:19]}
44... cxd4 {[%clk 0:00:24.5]} 45. Kf2 {[%clk 0:00:20.1]} 45... Ke5 {[%clk
0:00:25.9]} 46. a4 {[%clk 0:00:21.1]} 46... e3+ {[%clk 0:00:24.8]} 47. Ke2
{[%clk 0:00:22.4]} 47... Ke4 {[%clk 0:00:25.6]} 48. Bc2+ {[%clk 0:00:23.7]}
48... Kd5 {[%clk 0:00:26.7]} 49. b3 {[%clk 0:00:21.3]} 49... Kc5 {[%clk
0:00:27.5]} 50. Kd3 {[%clk 0:00:21.5]} 50... Be8 {[%clk 0:00:27.8]} 51. Ke2
{[%clk 0:00:19.6]} 51... Bf7 {[%clk 0:00:27.3]} 52. Bd1 {[%clk 0:00:20]} 52...
Bg6 {[%clk 0:00:26.9]} 53. h4 {[%clk 0:00:21.4]} 53... Kb4 {[%clk 0:00:26.9]}
54. h5 {[%clk 0:00:20.3]} 54... Bh7 {[%clk 0:00:27.8]} 55. Kf3 {[%clk
0:00:18.8]} 55... Kc3 {[%clk 0:00:29.2]} 56. a5 {[%clk 0:00:19.7]} 56... Kd2
{[%clk 0:00:30.7]} 57. a6 {[%clk 0:00:20.8]} 57... Kxd1 {[%clk 0:00:32.1]} 58.
a7 {[%clk 0:00:22.2]} 58... e2 {[%clk 0:00:33.9]} 59. a8=Q {[%clk 0:00:23.7]}
59... e1=Q {[%clk 0:00:35.5]} 60. Qa1+ {[%clk 0:00:24.8]} 60... Kd2 {[%clk
0:00:36.9]} 61. Qxd4+ {[%clk 0:00:25.8]} 61... Kc2 {[%clk 0:00:37.7]} 62. Qc4+
{[%clk 0:00:26]} 62... Qc3+ {[%clk 0:00:38.9]} 63. Qxc3+ {[%clk 0:00:27]} 63...
Kxc3 {[%clk 0:00:40.8]} 64. Ke3 {[%clk 0:00:27.6]} 64... Bd3 {[%clk 0:00:40.9]}
65. b4 {[%clk 0:00:28]} 65... Kc4 {[%clk 0:00:41.4]} 66. b5 {[%clk 0:00:27.9]}
66... Bh7 {[%clk 0:00:43.1]} 67. b6 {[%clk 0:00:26.7]} 67... Kd5 {[%clk
0:00:44.3]} 68. b7 {[%clk 0:00:27.4]} 68... Be4 {[%clk 0:00:45.4]} 69. b8=Q
{[%clk 0:00:28.5]} 1-0

[Event "*** Biggest EVER Titled Tuesday"]
[Site "Chess.com"]
[Date "2018.04.17"]
[Round "8"]
[White "MikaelyanArman"]
[Black "Oleksandr_Bortnyk"]
[Result "1-0"]
[WhiteElo "2616"]
[BlackElo "2775"]
[TimeControl "180+2"]
[EndTime "14:53:44 PDT"]
[Termination "MikaelyanArman won on time"]

1. Nf3 {[%clk 0:03:01.9]} 1... Nf6 {[%clk 0:02:59.2]} 2. g3 {[%clk 0:03:03.1]}
2... b6 {[%clk 0:02:59.4]} 3. Bg2 {[%clk 0:03:04.1]} 3... Bb7 {[%clk 0:03:01.3]}
4. O-O {[%clk 0:03:05.2]} 4... g6 {[%clk 0:03:02.3]} 5. b3 {[%clk 0:03:05.2]}
5... Bg7 {[%clk 0:03:03]} 6. Bb2 {[%clk 0:03:06.7]} 6... O-O {[%clk 0:03:04]} 7.
c4 {[%clk 0:03:07.7]} 7... d6 {[%clk 0:03:02.9]} 8. Nc3 {[%clk 0:03:07]} 8...
Nbd7 {[%clk 0:02:59.5]} 9. d4 {[%clk 0:03:07.1]} 9... e6 {[%clk 0:03:00.5]} 10.
Qc2 {[%clk 0:03:06.9]} 10... Qe7 {[%clk 0:02:39]} 11. Rad1 {[%clk 0:03:07]}
11... a6 {[%clk 0:02:36.8]} 12. Rfe1 {[%clk 0:03:04.3]} 12... Rfc8 {[%clk
0:02:34.1]} 13. e4 {[%clk 0:03:02.6]} 13... b5 {[%clk 0:02:32.9]} 14. e5 {[%clk
0:02:59.4]} 14... dxe5 {[%clk 0:02:29.3]} 15. dxe5 {[%clk 0:03:00.1]} 15... Ne8
{[%clk 0:02:29.8]} 16. cxb5 {[%clk 0:02:48.4]} 16... axb5 {[%clk 0:02:28.8]} 17.
Qd3 {[%clk 0:02:49.3]} 17... Bxf3 {[%clk 0:02:17.5]} 18. Bxf3 {[%clk 0:02:34]}
18... Nxe5 {[%clk 0:02:14.5]} 19. Rxe5 {[%clk 0:02:33.8]} 19... Bxe5 {[%clk
0:02:15.6]} 20. Bxa8 {[%clk 0:02:33.7]} 20... Rxa8 {[%clk 0:02:15.9]} 21. Qe4
{[%clk 0:02:24.8]} 21... Bxc3 {[%clk 0:01:09.1]} 22. Bxc3 {[%clk 0:02:26.7]}
22... Rd8 {[%clk 0:01:01]} 23. Re1 {[%clk 0:02:20.6]} 23... Qc5 {[%clk 0:00:57]}
24. Ba1 {[%clk 0:02:15.8]} 24... Rd2 {[%clk 0:00:52.2]} 25. Qf4 {[%clk
0:02:12.5]} 25... Rxa2 {[%clk 0:00:43.6]} 26. Be5 {[%clk 0:01:53]} 26... Qc2
{[%clk 0:00:35.8]} 27. Bd4 {[%clk 0:01:29.4]} 27... Qf5 {[%clk 0:00:28]} 28. Qe3
{[%clk 0:01:25.9]} 28... Nf6 {[%clk 0:00:27.5]} 29. Qc3 {[%clk 0:01:15.9]} 29...
c5 {[%clk 0:00:19]} 30. Re5 {[%clk 0:00:55.2]} 30... Qb1+ {[%clk 0:00:15.6]} 31.
Re1 {[%clk 0:00:55.7]} 31... Qf5 {[%clk 0:00:16.4]} 32. Re5 {[%clk 0:00:55]}
32... cxd4 {[%clk 0:00:04.1]} 33. Qc8+ {[%clk 0:00:53.2]} 33... Kg7 {[%clk
0:00:05.3]} 34. Rxf5 {[%clk 0:00:54.4]} 34... gxf5 {[%clk 0:00:07.2]} 35. Qd8
{[%clk 0:00:50.4]} 35... Rd2 {[%clk 0:00:07.7]} 36. Kf1 {[%clk 0:00:44.2]} 36...
d3 {[%clk 0:00:06.6]} 37. Qd4 {[%clk 0:00:39.7]} 37... Rd1+ {[%clk 0:00:07.7]}
38. Kg2 {[%clk 0:00:41]} 38... h6 {[%clk 0:00:09.3]} 39. Qc3 {[%clk 0:00:36.6]}
39... Kg6 {[%clk 0:00:09.2]} 40. h4 {[%clk 0:00:34.8]} 40... Ne4 {[%clk
0:00:03.7]} 41. Qh8 {[%clk 0:00:34.7]} 41... d2 {[%clk 0:00:04.5]} 42. Qg8+
{[%clk 0:00:32.2]} 42... Kf6 {[%clk 0:00:05.7]} 43. Qh8+ {[%clk 0:00:15.8]}
43... Ke7 {[%clk 0:00:06.5]} 44. Qd4 {[%clk 0:00:10.1]} 44... Rc1 {[%clk
0:00:05.4]} 45. Qb4+ {[%clk 0:00:08.4]} 45... Kf6 {[%clk 0:00:02.8]} 46. Qd4+
{[%clk 0:00:09.3]} 46... Ke7 {[%clk 0:00:03.6]} 47. Qb4+ {[%clk 0:00:07.3]}
47... Kf6 {[%clk 0:00:04.8]} 48. Qd4+ {[%clk 0:00:08.2]} 48... Kg6 {[%clk
0:00:06.3]} 49. h5+ {[%clk 0:00:09.5]} 49... Kxh5 {[%clk 0:00:03.1]} 50. Qg7
{[%clk 0:00:09.1]} 1-0

[Event "*** Biggest EVER Titled Tuesday"]
[Site "Chess.com"]
[Date "2018.04.17"]
[Round "8"]
[White "omer1997"]
[Black "NTBT_DHS"]
[Result "1-0"]
[WhiteElo "2134"]
[BlackElo "2502"]
[TimeControl "180+2"]
[EndTime "14:53:53 PDT"]
[Termination "omer1997 won by resignation"]

1. e4 {[%clk 0:03:01.9]} 1... g6 {[%clk 0:03:00.4]} 2. d4 {[%clk 0:03:02]} 2...
Bg7 {[%clk 0:03:01.8]} 3. Nc3 {[%clk 0:03:01.7]} 3... d6 {[%clk 0:03:03.1]} 4.
Nf3 {[%clk 0:03:01.5]} 4... Nf6 {[%clk 0:03:03.6]} 5. h3 {[%clk 0:02:56.9]} 5...
O-O {[%clk 0:03:04]} 6. Bd3 {[%clk 0:02:58.4]} 6... e5 {[%clk 0:03:01.6]} 7.
dxe5 {[%clk 0:02:57.3]} 7... dxe5 {[%clk 0:03:02.6]} 8. O-O {[%clk 0:02:58.9]}
8... Nc6 {[%clk 0:02:54.6]} 9. Bg5 {[%clk 0:02:49.4]} 9... h6 {[%clk 0:02:51.7]}
10. Be3 {[%clk 0:02:50]} 10... Be6 {[%clk 0:02:43]} 11. Bb5 {[%clk 0:02:44.4]}
11... Re8 {[%clk 0:02:03.4]} 12. Bxc6 {[%clk 0:02:38.7]} 12... bxc6 {[%clk
0:02:04.1]} 13. Nxe5 {[%clk 0:02:39.9]} 13... Nxe4 {[%clk 0:01:58.8]} 14. Qxd8
{[%clk 0:01:34]} 14... Raxd8 {[%clk 0:01:57.4]} 15. Nxc6 {[%clk 0:01:35]} 15...
Nxc3 {[%clk 0:01:55.5]} 16. bxc3 {[%clk 0:01:34.7]} 16... Rd6 {[%clk 0:01:45.5]}
17. Nxa7 {[%clk 0:01:24.2]} 17... Bc4 {[%clk 0:01:42.5]} 18. Rfd1 {[%clk
0:01:17.7]} 18... Ra6 {[%clk 0:01:43]} 19. Bd4 {[%clk 0:00:24.5]} 19... c5
{[%clk 0:00:50.1]} 20. Bxc5 {[%clk 0:00:22.1]} 20... Bxc3 {[%clk 0:00:51]} 21.
Rab1 {[%clk 0:00:22.3]} 21... Ra8 {[%clk 0:00:33]} 22. Nb5 {[%clk 0:00:21.8]}
22... Bxb5 {[%clk 0:00:22]} 23. Rxb5 {[%clk 0:00:23.7]} 23... Rxa2 {[%clk
0:00:23.4]} 24. Be3 {[%clk 0:00:17.3]} 24... h5 {[%clk 0:00:18.5]} 25. Rc1
{[%clk 0:00:15.4]} 25... Rc8 {[%clk 0:00:16.5]} 26. Rb3 {[%clk 0:00:15.1]} 26...
Bb2 {[%clk 0:00:16.3]} 27. Rd1 {[%clk 0:00:14.2]} 27... Rxc2 {[%clk 0:00:16.5]}
28. Rd8+ {[%clk 0:00:15.6]} 28... Kg7 {[%clk 0:00:14.3]} 29. g3 {[%clk
0:00:13.9]} 29... Bf6 {[%clk 0:00:13.5]} 30. Re8 {[%clk 0:00:14.6]} 30... h4
{[%clk 0:00:14.3]} 31. g4 {[%clk 0:00:15.4]} 31... Re2 {[%clk 0:00:06.7]} 32.
Rbb8 {[%clk 0:00:15]} 32... g5 {[%clk 0:00:07.4]} 33. Rg8+ {[%clk 0:00:14.2]}
33... Kh7 {[%clk 0:00:08.5]} 34. Rgf8 {[%clk 0:00:11.4]} 34... Kg6 {[%clk
0:00:08.3]} 35. Rb7 {[%clk 0:00:11.1]} 35... Rxe3 {[%clk 0:00:02.8]} 36. fxe3
{[%clk 0:00:12.2]} 36... Ra1+ {[%clk 0:00:04.3]} 37. Kg2 {[%clk 0:00:12.7]}
37... Ra2+ {[%clk 0:00:05.6]} 38. Kf3 {[%clk 0:00:13.7]} 38... Rh2 {[%clk
0:00:07.1]} 39. Rbxf7 {[%clk 0:00:13.9]} 39... Rxh3+ {[%clk 0:00:09]} 40. Ke4
{[%clk 0:00:15]} 40... Bg7 {[%clk 0:00:10.5]} 41. Rf3 {[%clk 0:00:10.8]} 41...
Rh2 {[%clk 0:00:08.9]} 42. Ra8 {[%clk 0:00:11.7]} 42... Rg2 {[%clk 0:00:09.2]}
43. Ra6+ {[%clk 0:00:12.9]} 43... Kh7 {[%clk 0:00:09.6]} 44. Kf5 {[%clk
0:00:14.5]} 44... Rc2 {[%clk 0:00:04.7]} 45. Kxg5 {[%clk 0:00:14.5]} 45... Rh2
{[%clk 0:00:04.9]} 46. Ra7 {[%clk 0:00:13.2]} 46... Rb2 {[%clk 0:00:03.3]} 47.
Rff7 {[%clk 0:00:13.1]} 47... Rb5+ {[%clk 0:00:02.7]} 48. Kxh4 {[%clk
0:00:13.7]} 48... Kh6 {[%clk 0:00:04.6]} 49. Ra6+ {[%clk 0:00:12]} 49... Kh7
{[%clk 0:00:05.4]} 50. e4 {[%clk 0:00:12.6]} 50... Re5 {[%clk 0:00:06]} 51. Raa7
{[%clk 0:00:11.8]} 51... Kh6 {[%clk 0:00:06.7]} 52. Kg3 {[%clk 0:00:07.8]} 52...
Rxe4 {[%clk 0:00:04.7]} 53. g5+ {[%clk 0:00:06.8]} 53... Kh5 {[%clk 0:00:04.4]}
54. Rxg7 {[%clk 0:00:08.7]} 54... Re3+ {[%clk 0:00:04.6]} 55. Kf2 {[%clk
0:00:09.9]} 55... Rb3 {[%clk 0:00:04.2]} 56. g6 {[%clk 0:00:11.1]} 56... Rb6
{[%clk 0:00:04.4]} 57. Rg8 {[%clk 0:00:11.8]} 1-0

[Event "*** Biggest EVER Titled Tuesday"]
[Site "Chess.com"]
[Date "2018.04.17"]
[Round "8"]
[White "colemman"]
[Black "shyam"]
[Result "0-1"]
[WhiteElo "2510"]
[BlackElo "2586"]
[TimeControl "180+2"]
[EndTime "14:54:04 PDT"]
[Termination "shyam won by resignation"]

1. d4 {[%clk 0:03:01.2]} 1... Nf6 {[%clk 0:03:00.7]} 2. Nf3 {[%clk 0:03:02.5]}
2... g6 {[%clk 0:03:02]} 3. Nbd2 {[%clk 0:03:04]} 3... Bg7 {[%clk 0:03:03.9]} 4.
e4 {[%clk 0:03:05.3]} 4... O-O {[%clk 0:03:04.4]} 5. e5 {[%clk 0:03:06]} 5...
Ne8 {[%clk 0:03:05.2]} 6. Bc4 {[%clk 0:03:07.3]} 6... d6 {[%clk 0:03:01.2]} 7.
Qe2 {[%clk 0:03:07.3]} 7... Nc6 {[%clk 0:02:57.3]} 8. c3 {[%clk 0:03:00.9]} 8...
Bf5 {[%clk 0:02:39.2]} 9. O-O {[%clk 0:02:49.1]} 9... dxe5 {[%clk 0:02:37.9]}
10. dxe5 {[%clk 0:02:46.9]} 10... Na5 {[%clk 0:02:37.8]} 11. Rd1 {[%clk
0:02:33.5]} 11... Nxc4 {[%clk 0:02:36.4]} 12. Nxc4 {[%clk 0:02:33.6]} 12... Qc8
{[%clk 0:02:38.3]} 13. Bg5 {[%clk 0:02:28.5]} 13... f6 {[%clk 0:02:34.4]} 14.
Bh4 {[%clk 0:02:24.5]} 14... Kh8 {[%clk 0:01:52.8]} 15. h3 {[%clk 0:02:06.7]}
15... a5 {[%clk 0:01:47.7]} 16. Rd2 {[%clk 0:01:57.4]} 16... Be6 {[%clk
0:01:20.8]} 17. Rad1 {[%clk 0:01:52.2]} 17... Bg8 {[%clk 0:01:11.5]} 18. Nd4
{[%clk 0:01:20.2]} 18... a4 {[%clk 0:01:04.5]} 19. a3 {[%clk 0:01:18]} 19... Ra6
{[%clk 0:01:00.3]} 20. Re1 {[%clk 0:00:51.3]} 20... fxe5 {[%clk 0:00:48.4]} 21.
Nxe5 {[%clk 0:00:50.6]} 21... Nf6 {[%clk 0:00:49.5]} 22. Nef3 {[%clk 0:00:45.2]}
22... Nd5 {[%clk 0:00:49.4]} 23. c4 {[%clk 0:00:29.2]} 23... Nf4 {[%clk
0:00:50]} 24. Qxe7 {[%clk 0:00:29]} 24... Bxc4 {[%clk 0:00:41.2]} 25. Bg3 {[%clk
0:00:26.8]} 25... Bg8 {[%clk 0:00:38.7]} 26. Nb5 {[%clk 0:00:21.4]} 26... Nd5
{[%clk 0:00:33.3]} 27. Rxd5 {[%clk 0:00:13.3]} 27... Bxd5 {[%clk 0:00:35.2]} 28.
Be5 {[%clk 0:00:12.8]} 28... Rf7 {[%clk 0:00:22.2]} 29. Bxg7+ {[%clk 0:00:09.9]}
29... Rxg7 {[%clk 0:00:24.1]} 30. Qe8+ {[%clk 0:00:09.4]} 30... Qxe8 {[%clk
0:00:24.6]} 31. Rxe8+ {[%clk 0:00:10.8]} 31... Bg8 {[%clk 0:00:25.3]} 32. Nxc7
{[%clk 0:00:10.6]} 32... Rxc7 {[%clk 0:00:25.6]} 33. Ng5 {[%clk 0:00:10.4]}
33... Kg7 {[%clk 0:00:25.2]} 34. Kh2 {[%clk 0:00:11.3]} 34... h6 {[%clk
0:00:24.6]} 35. Nf3 {[%clk 0:00:11.8]} 35... Re6 {[%clk 0:00:24]} 36. Rb8 {[%clk
0:00:12.3]} 36... Re2 {[%clk 0:00:24.1]} 37. Kg3 {[%clk 0:00:09.6]} 37... Rxb2
{[%clk 0:00:24.3]} 38. Nd4 {[%clk 0:00:10.6]} 38... Rd2 {[%clk 0:00:23]} 39. Nb5
{[%clk 0:00:08.6]} 39... Re7 {[%clk 0:00:21.7]} 40. f3 {[%clk 0:00:09.5]} 40...
Rb2 {[%clk 0:00:22.6]} 41. Nd6 {[%clk 0:00:09.9]} 41... h5 {[%clk 0:00:22.5]}
42. Nc8 {[%clk 0:00:10.3]} 42... Re8 {[%clk 0:00:21.9]} 43. Kh4 {[%clk 0:00:11]}
43... Kh6 {[%clk 0:00:20.5]} 44. f4 {[%clk 0:00:10.2]} 44... Rc2 {[%clk
0:00:19.9]} 45. Rxb7 {[%clk 0:00:09]} 45... Rexc8 {[%clk 0:00:20]} 46. g4 {[%clk
0:00:10]} 46... hxg4 {[%clk 0:00:21.9]} 47. hxg4 {[%clk 0:00:10.5]} 47... R2c7
{[%clk 0:00:23.8]} 48. Rb6 {[%clk 0:00:10]} 48... Rc6 {[%clk 0:00:24.1]} 49. Rb7
{[%clk 0:00:11.2]} 49... R8c7 {[%clk 0:00:24.4]} 50. Rb8 {[%clk 0:00:12.6]}
50... Kg7 {[%clk 0:00:25.7]} 51. Rb5 {[%clk 0:00:13.1]} 51... Rc3 {[%clk
0:00:25.9]} 52. Rb6 {[%clk 0:00:14.2]} 52... Rxa3 {[%clk 0:00:26.6]} 53. Kg5
{[%clk 0:00:15.2]} 53... Bf7 {[%clk 0:00:27.9]} 54. f5 {[%clk 0:00:16.7]} 54...
gxf5 {[%clk 0:00:29.5]} 55. gxf5 {[%clk 0:00:17.4]} 55... Rg3+ {[%clk
0:00:30.4]} 56. Kf4 {[%clk 0:00:18.9]} 56... Rg1 {[%clk 0:00:29.1]} 57. Ra6
{[%clk 0:00:20.3]} 57... Rf1+ {[%clk 0:00:29.1]} 58. Kg5 {[%clk 0:00:21.1]}
58... Rg1+ {[%clk 0:00:30]} 59. Kf4 {[%clk 0:00:21.9]} 59... Rc4+ {[%clk
0:00:31.1]} 60. Ke5 {[%clk 0:00:22.8]} 60... Re1+ {[%clk 0:00:31.2]} 61. Kd6
{[%clk 0:00:23.9]} 61... Rf4 {[%clk 0:00:32]} 62. Ra5 {[%clk 0:00:23]} 62... Re3
{[%clk 0:00:30.1]} 63. Kd7 {[%clk 0:00:23.4]} 63... a3 {[%clk 0:00:31.2]} 64.
Kd6 {[%clk 0:00:23.3]} 64... a2 {[%clk 0:00:32.3]} 65. Kd7 {[%clk 0:00:24.2]}
65... Re1 {[%clk 0:00:33.6]} 0-1

[Event "*** Biggest EVER Titled Tuesday"]
[Site "Chess.com"]
[Date "2018.04.17"]
[Round "8"]
[White "sergeikim"]
[Black "Manukyan_Artak"]
[Result "1/2-1/2"]
[WhiteElo "2442"]
[BlackElo "2354"]
[TimeControl "180+2"]
[EndTime "14:54:04 PDT"]
[Termination "Game drawn by stalemate"]

1. d4 {[%clk 0:03:01.9]} 1... d6 {[%clk 0:03:00.8]} 2. c4 {[%clk 0:03:02.6]}
2... e5 {[%clk 0:03:00.8]} 3. Nf3 {[%clk 0:03:02.7]} 3... Nd7 {[%clk 0:03:00.4]}
4. Nc3 {[%clk 0:03:02.7]} 4... Ngf6 {[%clk 0:03:00.9]} 5. g3 {[%clk 0:03:03.5]}
5... g6 {[%clk 0:03:00.1]} 6. Bg2 {[%clk 0:03:04]} 6... Bg7 {[%clk 0:03:01.5]}
7. O-O {[%clk 0:03:04.8]} 7... O-O {[%clk 0:03:02.5]} 8. e4 {[%clk 0:03:03.3]}
8... a5 {[%clk 0:02:51.8]} 9. d5 {[%clk 0:02:58.5]} 9... Nc5 {[%clk 0:02:52.3]}
10. Ne1 {[%clk 0:02:59.2]} 10... h5 {[%clk 0:02:50.6]} 11. Nd3 {[%clk 0:02:57]}
11... Nfd7 {[%clk 0:02:33.1]} 12. Be3 {[%clk 0:02:50.5]} 12... h4 {[%clk
0:02:32.1]} 13. Rc1 {[%clk 0:02:35.5]} 13... Nxd3 {[%clk 0:02:19.3]} 14. Qxd3
{[%clk 0:02:35.3]} 14... Nc5 {[%clk 0:02:21]} 15. Qd2 {[%clk 0:02:36.2]} 15...
h3 {[%clk 0:02:12.4]} 16. Bh1 {[%clk 0:02:36.2]} 16... f5 {[%clk 0:01:57.9]} 17.
f4 {[%clk 0:02:36.3]} 17... exf4 {[%clk 0:01:54]} 18. Bxf4 {[%clk 0:02:34.3]}
18... Qf6 {[%clk 0:01:43]} 19. Be3 {[%clk 0:02:31.6]} 19... Qe5 {[%clk
0:01:31.7]} 20. exf5 {[%clk 0:02:30.5]} 20... gxf5 {[%clk 0:01:28.7]} 21. Rce1
{[%clk 0:02:28.4]} 21... Qf6 {[%clk 0:01:27.3]} 22. Nb5 {[%clk 0:02:25.2]} 22...
Qxb2 {[%clk 0:01:22.7]} 23. Qxb2 {[%clk 0:02:18.5]} 23... Bxb2 {[%clk
0:01:22.8]} 24. Nxc7 {[%clk 0:02:19]} 24... Rb8 {[%clk 0:01:21.4]} 25. Nb5
{[%clk 0:02:16]} 25... Ne4 {[%clk 0:01:07.3]} 26. Bxe4 {[%clk 0:01:56.4]} 26...
fxe4 {[%clk 0:01:08]} 27. Rxf8+ {[%clk 0:01:55.7]} 27... Kxf8 {[%clk 0:01:09.9]}
28. Nxd6 {[%clk 0:01:56.2]} 28... Bg4 {[%clk 0:01:06.2]} 29. Nxe4 {[%clk
0:01:52.6]} 29... Re8 {[%clk 0:01:05]} 30. Nf2 {[%clk 0:01:52.8]} 30... Bc3
{[%clk 0:01:00.3]} 31. Rc1 {[%clk 0:01:49.9]} 31... Rxe3 {[%clk 0:00:54.9]} 32.
Nxg4 {[%clk 0:01:50]} 32... Rf3 {[%clk 0:00:56]} 33. Nf2 {[%clk 0:01:29.8]}
33... Bd4 {[%clk 0:00:55]} 34. Rc2 {[%clk 0:01:30.8]} 34... Ke7 {[%clk
0:00:55.9]} 35. Kf1 {[%clk 0:01:28.5]} 35... Kd6 {[%clk 0:00:55.5]} 36. Ke1
{[%clk 0:01:29.5]} 36... Bxf2+ {[%clk 0:00:49.6]} 37. Rxf2 {[%clk 0:01:29.6]}
37... Rc3 {[%clk 0:00:49.6]} 38. Rd2 {[%clk 0:01:21.9]} 38... Rxc4 {[%clk
0:00:49.7]} 39. Kf2 {[%clk 0:01:21.3]} 39... b5 {[%clk 0:00:49.7]} 40. Kf3
{[%clk 0:01:22.4]} 40... b4 {[%clk 0:00:50.4]} 41. g4 {[%clk 0:01:23.5]} 41...
Rc5 {[%clk 0:00:50.4]} 42. Ke4 {[%clk 0:01:22.8]} 42... Rc8 {[%clk 0:00:47.1]}
43. g5 {[%clk 0:01:22.8]} 43... a4 {[%clk 0:00:46.4]} 44. g6 {[%clk 0:01:22.3]}
44... b3 {[%clk 0:00:42]} 45. axb3 {[%clk 0:01:23.1]} 45... axb3 {[%clk
0:00:43.3]} 46. Rb2 {[%clk 0:01:22]} 46... Rb8 {[%clk 0:00:42.1]} 47. g7 {[%clk
0:01:19.6]} 47... Rg8 {[%clk 0:00:39.7]} 48. Rxb3 {[%clk 0:01:19.7]} 48... Rxg7
{[%clk 0:00:41.3]} 49. Rb6+ {[%clk 0:01:17.9]} 49... Kc5 {[%clk 0:00:39.8]} 50.
Rc6+ {[%clk 0:01:17.6]} 50... Kb5 {[%clk 0:00:41.1]} 51. Rh6 {[%clk 0:01:18.1]}
51... Kc5 {[%clk 0:00:34.1]} 52. d6 {[%clk 0:01:12]} 52... Rg2 {[%clk
0:00:27.2]} 53. Ke5 {[%clk 0:00:48.4]} 53... Rxh2 {[%clk 0:00:26.1]} 54. Ke6
{[%clk 0:00:48.8]} 54... Rd2 {[%clk 0:00:26]} 55. d7 {[%clk 0:00:46]} 55... h2
{[%clk 0:00:21.5]} 56. Rxh2 {[%clk 0:00:41.3]} 56... Rxh2 {[%clk 0:00:20.7]} 57.
d8=Q {[%clk 0:00:42.3]} 57... Re2+ {[%clk 0:00:22.1]} 58. Kf5 {[%clk 0:00:43.2]}
58... Kc4 {[%clk 0:00:19.9]} 59. Qc7+ {[%clk 0:00:40.8]} 59... Kd3 {[%clk
0:00:21]} 60. Qd6+ {[%clk 0:00:38.9]} 60... Ke3 {[%clk 0:00:21.9]} 61. Qc5+
{[%clk 0:00:34.1]} 61... Kf3 {[%clk 0:00:21.6]} 62. Qc4 {[%clk 0:00:31.1]} 62...
Re3 {[%clk 0:00:21.6]} 63. Qg4+ {[%clk 0:00:30.6]} 63... Kf2 {[%clk 0:00:22.5]}
64. Kf4 {[%clk 0:00:31.6]} 64... Re2 {[%clk 0:00:22.4]} 65. Qg3+ {[%clk
0:00:31.7]} 65... Kf1 {[%clk 0:00:23.3]} 66. Kf3 {[%clk 0:00:32.6]} 66... Re3+
{[%clk 0:00:24.6]} 67. Kxe3 {[%clk 0:00:33.4]} 1/2-1/2